Cogmind - Beta 16.1 @@@ ROGUE MODE // 2026.02.15 @ 02:43:32 // Winter2019/RPGLIKE Player: badjay Result: Destroyed by C-17 Slicer with Blade Saw Performance ------------- Evolutions (3) 1500 Regions Visited (5) 1000 Robots Destroyed (29) 145 Value Destroyed (611) 611 Prototype IDs (7) 140 Alien Tech Used (0) 0 Bonus (2) 2 TOTAL SCORE: 3398 Bonus ------- High Alert Combat Kills 2 Cogmind --------- Core Integrity 0/650 Matter 101/300 Energy 259/280 System Corruption 1% Temperature Cool (3) Movement Flying (30) Location -7/Factory Parts ------- > --- POWER (1) -------- Cooled Ion Engine > --- PROPULSION (3) --- Flight Unit Improved VTOL Module Improved VTOL Module > --- UTILITY (4) ------ Improved Sensor Array Improved Signal Interpreter Melee Analysis Suite Reaction Control System > --- WEAPON (2) ------- Flail Makeshift Sword > --- INVENTORY (0) ---- (None) Peak State ------------ > --- POWER ------------ Cooled Ion Engine > --- PROPULSION ------- Flight Unit Improved VTOL Module Improved VTOL Module > --- UTILITY ---------- Improved Sensor Array Improved Signal Interpreter Melee Analysis Suite Reaction Control System > --- WEAPON ----------- Flail Makeshift Sword > --- INVENTORY -------- (None) [Rating: 30] Favorites ----------- Power Heavy Ion Engine Engine Heavy Ion Engine Propulsion Flight Unit Flight Unit Flight Unit Utility Improved Sensor Array Device Improved Sensor Array Processor Improved Signal Interpreter Weapon Makeshift Sword Launcher Grenade Launcher Impact Weapon Flail Slashing Weapon Makeshift Sword Build | -11 -10 -9 -9 -8 -7 ------- Run | Yrd Mat Mat Min Mat Fac Slots Evolved 6 | . 2 . . 3 1 Power . | . . . . . . Propulsion 2 | . 2 . . . . Utility 3 | . . . . 3 . Weapon 1 | . . . . . 1 Parts Attached 16 | . 6 1 1 7 1 Power 2 | . . 1 . 1 . Engine 2 | . . 1 . 1 . Core . | . . . . . . Reactor . | . . . . . . Propulsion 7 | . 5 . . 2 . Treads . | . . . . . . Leg . | . . . . . . Wheel . | . . . . . . Hover . | . . . . . . Flight 7 | . 5 . . 2 . Utility 4 | . . . . 4 . Device 2 | . . . . 2 . Storage . | . . . . . . Processor 2 | . . . . 2 . Hackware . | . . . . . . Protection . | . . . . . . Artifact . | . . . . . . Weapon 3 | . 1 . 1 . 1 Energy Gun . | . . . . . . Energy Cannon . | . . . . . . Ballistic Gun . | . . . . . . Ballistic Cannon . | . . . . . . Launcher 1 | . 1 . . . . Special Weapon . | . . . . . . Impact Weapon 1 | . . . . . 1 Slashing Weapon 1 | . . . 1 . . Piercing Weapon . | . . . . . . Special Melee Weapon . | . . . . . . Unidentified Prototypes 1 | . . 1 . . . Parts Lost . | . . . . . . Power . | . . . . . . Propulsion . | . . . . . . Utility . | . . . . . . Weapon . | . . . . . . Highest Loss Streak . | . . . . . . To Critical Strikes . | . . . . . . Average Backups . | . . . . . . Power . | . . . . . . Propulsion . | . . . . . . Utility . | . . . . . . Weapon . | . . . . . . Tool/Special . | . . . . . . Unused Backups . | . . . . . . Power . | . . . . . . Propulsion . | . . . . . . Utility . | . . . . . . Weapon . | . . . . . . Tool/Special . | . . . . . . Average Slot Usage (%) 84 | . 54 77 83 98 100 Engine 9 | . . 10 16 12 10 Flight 40 | . 39 50 50 38 32 Device 8 | . . . . 13 21 Processor 10 | . . . . 19 21 Launcher 6 | . 15 16 8 . . Slashing Weapon 6 | . . . 8 12 10 Peak Build Rating 30 | . 4 7 10 28 30 Average Rating 15 | . 3 6 8 19 28 On Entrance 8 | . . 4 7 10 28 Avg Prop Armor Cover (%) . | . . . . . . Naked Turns 9 | . 9 . . . . Heaviest Build 14 | . 3 11 11 12 14 Greatest Support 15 | 3 12 12 12 15 15 Greatest Overweight (x) . | . . . . . . Average Overweight (x) . | . . . . . . Largest Inventory Capacity . | . . . . . . Average Capacity . | . . . . . . Most Carried . | . . . . . . Average Carried . | . . . . . . Final Capacity . | . . . . . . Final Carried . | . . . . . . Class Distribution -------------------- 64% | Mutant 35% | Sprinter Dominant Class ---------------- Mutant | -10/Materials Mutant | -9/Materials Mutant | -9/Mines Mutant | -8/Materials Sprinter | -7/Factory Resources | -11 -10 -9 -9 -8 -7 ----------- Run | Yrd Mat Mat Min Mat Fac Matter Collected 571 | 127 148 121 . 175 . Remotely . | . . . . . . Salvage Created 549 | . 136 75 . 338 . Parts 40 | . 10 6 . 24 . Haulers Intercepted 2 | . 1 . . 1 . Recyclers Shooed 2 | . 2 . . . . Parts Field Recycled . | . . . . . . Retrieved Matter . | . . . . . . Parts Self-Destructed . | . . . . . . Prevented . | . . . . . . Parts Restored . | . . . . . . Kills | -11 -10 -9 -9 -8 -7 ------- Run | Yrd Mat Mat Min Mat Fac Combat Hostiles Destroyed 22 | . 8 8 . 6 . Melee 6 | . . . . 6 . AOE 16 | . 8 8 . . . Classes Destroyed 8 | . 3 2 . 3 . Worker 1 | . . . . 1 . Hauler 2 | . 1 . . 1 . Recycler 1 | . . . . 1 . Operator 1 | . . . . 1 . Watcher 2 | . . 1 . 1 . Swarmer 14 | . 6 4 . 4 . Grunt 4 | . 2 . . 2 . Sentry 4 | . . 4 . . . Best Kill Streak 7 | . 5 7 . 6 . Combat Bots Only 7 | . 4 7 . 5 . Max Kills in Single Turn 2 | . 2 2 . 1 . Gunslinging . | . . . . . . Exploded 2 | . 2 2 . . . Melee 1 | . . . . 1 . Uniques/NPCs Destroyed . | . . . . . . Combat | -11 -10 -9 -9 -8 -7 -------- Run | Yrd Mat Mat Min Mat Fac Hostile Shots Fired 114 | . 22 53 . 36 3 Missed 53 | . 11 25 . 16 1 Hits 61 | . 11 28 . 20 2 Melee 2 | . . . . . 2 Projectile 59 | . 11 28 . 20 . AOE 1 | . . . . . 1 Critical Strikes 4 | . . 1 . 1 2 Damage Taken 894 | . 143 441 . 219 91 Core 749 | . 120 372 . 184 73 Absorbed by Shields . | . . . . . . Redirected to Core 486 | . 76 231 . 115 64 Core Remaining (%) 53 | 100 86 . 24 3 . Volleys Fired 39 | . 10 29 . . . Largest 1 | . 1 1 . . . Hottest 30 | . 30 30 . . . Shots Fired 39 | . 10 29 . . . Gun . | . . . . . . Cannon . | . . . . . . Launcher 39 | . 10 29 . . . Special . | . . . . . . Kinetic . | . . . . . . Thermal . | . . . . . . Explosive 39 | . 10 29 . . . Electromagnetic . | . . . . . . Robot Hit Streak 11 | . 2 11 . . . Robot Miss Streak 1 | . 1 1 . . . Penetration Max . | . . . . . . Secondary Targets . | . . . . . . Shots Hit Robots 50 | . 5 24 . 19 2 Core Hits 44 | . 15 20 . 9 . Critical Kills . | . . . . . . Critical Parts Destroyed . | . . . . . . Critical Strikes . | . . . . . . Melee Attacks 34 | . . . . 23 11 Impact 2 | . . . . . 2 Slashing 32 | . . . . 23 9 Piercing . | . . . . . . Sneak Attacks 3 | . . . . 3 . Combat Hostiles . | . . . . . . Follow-up Attacks . | . . . . . . Damage Inflicted 2273 | . 519 762 . 888 104 Guns . | . . . . . . Cannons . | . . . . . . Explosions 1281 | . 519 762 . . . Melee 992 | . . . . 888 104 Ramming . | . . . . . . Kinetic . | . . . . . . Thermal 66 | . . 66 . . . Explosive 1215 | . 519 696 . . . Electromagnetic . | . . . . . . Impact . | . . . . . . Slashing 992 | . . . . 888 104 Piercing . | . . . . . . Highest Corruption 1 | . . . . . 1 Average Corruption 1 | . . . . . 1 Corruption Purged . | . . . . . . Corruption Blocked . | . . . . . . Overload Shots . | . . . . . . Overflow Damage 214 | . 38 55 . 92 29 Projectiles . | . . . . . . Explosions 93 | . 38 55 . . . Melee 121 | . . . . 92 29 Knockbacks . | . . . . . . Impact . | . . . . . . Kinetic . | . . . . . . Secondary . | . . . . . . Self-Inflicted Damage 88 | . 21 67 . . . Shots 4 | . 1 3 . . . Rammed . | . . . . . . Targets Rammed . | . . . . . . Kicked . | . . . . . . Crushed . | . . . . . . Highest Temperature 52 | . 2 52 . 20 . Average Temperature 22 | . 2 23 . 13 . Received Heat Transfer 219 | . 24 132 . 63 . Siege Activations . | . . . . . . Martial Activations . | . . . . . . Shielding Activations . | . . . . . . Robots Disrupted . | . . . . . . Combat Hostiles . | . . . . . . Robots Corrupted . | . . . . . . Combat Hostiles . | . . . . . . Parts Fried . | . . . . . . Impact Corruptions . | . . . . . . Robots Melted . | . . . . . . Combat Hostiles . | . . . . . . Parts Melted . | . . . . . . Heat Transferred 50 | . . 50 . . . Parts Sabotaged . | . . . . . . Parts Stolen . | . . . . . . Parts Stripped . | . . . . . . Power Chain Reactions . | . . . . . . Alert | -11 -10 -9 -9 -8 -7 ------- Run | Yrd Mat Mat Min Mat Fac Maximum Alert Level 2 | . 1 2 . . . Low Security (%) 80 | 100 65 32 100 100 100 Level 1 19 | . 34 65 . . . Level 2 . | . . 1 . . . Level 3 . | . . . . . . Level 4 . | . . . . . . Level 5 . | . . . . . . High Security . | . . . . . . Max Security . | . . . . . . Peak Influence 421 | . 274 421 127 182 91 Initial 127 | . . 111 127 . 82 Average 116 | . 156 230 65 98 51 Influence Increases 1135 | . 344 448 . 272 71 Destroy 0b10 Robot/C 440 | . 160 160 . 120 . Destroy 0b10 Robot/NC 35 | . 5 5 . 25 . Destroy Leader 98 | . 32 52 . 14 . Successful Hack 122 | . 20 13 . 38 51 Disable Machine 60 | . 15 30 . 15 . Destroy Structure 185 | . 67 113 . . 5 Partial Spotted 60 | . 15 30 . 15 . Lose Combat Pursuer 135 | . 30 45 . 45 15 Influence Decreases 1102 | . 80 383 329 90 220 Entered New Map 455 | . . 153 202 . 100 Time Decay 410 | . 80 80 40 90 120 Lost Ally 87 | . . . 87 . . Purge Threat 150 | . . 150 . . . Squads Dispatched 6 | . 1 3 . . 2 Investigation . | . . . . . . Extermination . | . . . . . . Reinforcement 6 | . 1 3 . . 2 Assault . | . . . . . . Garrison . | . . . . . . Intercept . | . . . . . . Searches Triggered . | . . . . . . Construction Impeded . | . . . . . . Haulers Reinforced . | . . . . . . Active Scanning Responses . | . . . . . . Cargo Convoy Interrupts . | . . . . . . Stealth | -11 -10 -9 -9 -8 -7 --------- Run | Yrd Mat Mat Min Mat Fac Distress Signals 6 | . 1 3 . 1 1 Communications Jammed . | . . . . . . Distress Signals . | . . . . . . Times Spotted 59 | . 15 23 . 14 7 Peak Tracking Total 13 | . 5 13 . 8 3 Tactical Retreats 6 | . 1 1 . 3 1 Traps | -11 -10 -9 -9 -8 -7 ------- Run | Yrd Mat Mat Min Mat Fac Traps Triggered 5 | . 1 . . 1 3 Indirectly . | . . . . . . Trap Hack Attempts . | . . . . . . Triggered . | . . . . . . Disarmed . | . . . . . . Reprogrammed . | . . . . . . Reused . | . . . . . . Traps Extracted . | . . . . . . Installed . | . . . . . . Triggered . | . . . . . . Machines | -11 -10 -9 -9 -8 -7 ---------- Run | Yrd Mat Mat Min Mat Fac Machines Disabled 4 | . 1 2 . 1 . Max in Single Turn 2 | . 1 2 . 1 . Machines Repaired . | . . . . . . Machines Dismantled . | . . . . . . Machines Sabotaged . | . . . . . . Overloaded Fab Kills . | . . . . . . Hacking | -11 -10 -9 -9 -8 -7 --------- Run | Yrd Mat Mat Min Mat Fac Machines Accessed 25 | . 6 5 . 5 9 Terminals 21 | . 6 5 . 4 6 Fabricators 2 | . . . . . 2 Repair Stations . | . . . . . . Recycling Units . | . . . . . . Scanalyzers 2 | . . . . 1 1 Garrison Access . | . . . . . . Total Hacks 95 | . 24 19 . 28 24 Successful 47 | . 12 9 . 13 13 Failed 47 | . 12 10 . 14 11 Catastrophic 4 | . 3 1 . . . Database Lockouts 1 | . . . . 1 . Manual 71 | . 17 18 . 22 14 Terminals 89 | . 24 19 . 27 19 Fabricators 4 | . . . . . 4 Repair Stations . | . . . . . . Recycling Units . | . . . . . . Scanalyzers 2 | . . . . 1 1 Garrison Access . | . . . . . . Terminal Hacks 27 | . 9 5 . 8 5 Part Schematic 1 | . . . . . 1 Prototype ID Bank 3 | . 2 . . 1 . Level Access Points 1 | . . . . 1 . Branch Access Points 2 | . . 1 . 1 . Terminal Index 3 | . 1 . . 1 1 Alert Level 2 | . 1 1 . . . Unreport Threat 1 | . . 1 . . . Recall Investigation 1 | . 1 . . . . Hauler Manifests 3 | . . . . 2 1 Registered Components 2 | . 1 . . 1 . Registered Prototypes 1 | . 1 . . . . Zone Layout 7 | . 2 2 . 1 2 Fabricator Hacks 1 | . . . . . 1 Network Status 1 | . . . . . 1 Repair Station Hacks . | . . . . . . Recycling Unit Hacks . | . . . . . . Scanalyzer 2 | . . . . 1 1 Retrieve Study 2 | . . . . 1 1 Garrison Access Hacks . | . . . . . . Unauthorized Hacks 17 | . 3 4 . 4 6 Terminals 17 | . 3 4 . 4 6 Track 4 | . . 1 . 1 2 Assimilate 1 | . . . . . 1 Botnet 12 | . 3 3 . 3 3 Fabricators . | . . . . . . Repair Stations . | . . . . . . Recycling Units . | . . . . . . Scanalyzers . | . . . . . . Garrison Access . | . . . . . . Data Cores Recovered 1 | . . . . 1 . Used . | . . . . . . Hacking Detections 24 | . 6 5 . 4 9 Full Trace Events 1 | . 1 . . . . Feedback Events . | . . . . . . Feedback Blocked . | . . . . . . Robot Schematics Acquired . | . . . . . . Robots Built . | . . . . . . Authchips . | . . . . . . Time . | . . . . . . Total Robot Build Rating . | . . . . . . Part Schematics Acquired 1 | . . . . . 1 Parts Built . | . . . . . . Authchips . | . . . . . . Time . | . . . . . . Total Part Build Rating . | . . . . . . Part Studies Acquired 2 | . . . . 1 1 Parts Repaired . | . . . . . . Time . | . . . . . . Parts Recycled . | . . . . . . Recycled Matter . | . . . . . . Retrieved Matter . | . . . . . . Retrieved Components . | . . . . . . Parts Scanalyzed . | . . . . . . Part Schematics Acquired . | . . . . . . Parts Damaged . | . . . . . . Bothacking | -11 -10 -9 -9 -8 -7 ------------ Run | Yrd Mat Mat Min Mat Fac Used RIF Installer . | . . . . . . Robots Hacked . | . . . . . . Non-combat . | . . . . . . Combat . | . . . . . . Robot Hacks Applied . | . . . . . . Relay Couplers Released . | . . . . . . Fabnet Peak Effective % . | . . . . . . Robots Rewired . | . . . . . . Allies Hacked . | . . . . . . Hacks Repelled . | . . . . . . Allies | -11 -10 -9 -9 -8 -7 -------- Run | Yrd Mat Mat Min Mat Fac Total Allies 5 | . . . 5 . . Largest Group 5 | . . . 5 . . Highest-Rated Group 81 | . . . 81 . . Highest-Rated Ally 31 | . . . 31 . . Total Orders . | . . . . . . Ally Attacks 5 | . . . 5 . . Total Damage 24 | . . . 24 . . Kills . | . . . . . . Allies Corrupted . | . . . . . . Allies Melted . | . . . . . . Intel | -11 -10 -9 -9 -8 -7 ------- Run | Yrd Mat Mat Min Mat Fac Active Infowar (turns) 446 | . . . . 187 259 Sensors 446 | . . . . 187 259 Robot Analysis Total . | . . . . . . Derelict Logs Recovered . | . . . . . . Drone Launches . | . . . . . . Drone Recoveries . | . . . . . . Exploration | -11 -10 -9 -9 -8 -7 ------------- Run | Yrd Mat Mat Min Mat Fac Turns Passed 897 | 10 167 174 94 193 259 Spaces Moved 1843 | 19 349 337 132 325 681 Core 45 | 19 26 . . . . Treads . | . . . . . . Legs . | . . . . . . Wheels . | . . . . . . Hover . | . . . . . . Flight 1798 | . 323 337 132 325 681 Fastest Speed 30 | 50 34 34 34 30 30 Average Speed 32 | 50 35 34 34 33 30 Slowest Speed 50 | 50 50 34 34 34 30 Overloaded Moves . | . . . . . . Propulsion Burnouts . | . . . . . . Robots Hopped 9 | . 4 4 . 1 . Potential Cave-ins . | . . . . . . Cave-ins Triggered . | . . . . . . Exploration Rate (%) 33 | 3 60 52 37 31 20 Regions Visited 5 Branch Regions 1 Pre-discovered Areas . | . . . . . . Known Exits Taken 2 | . . 1 . 1 . Unknown Exits Taken 3 | 1 1 . 1 . . Scrap Searched 1 | . . . 1 . . Spaces Dug 5 | . . . . . 5 Terrain Destroyed 239 | . 79 155 . . 5 Melee 5 | . . . . . 5 Projectile . | . . . . . . AOE 234 | . 79 155 . . . Terrain Rammed . | . . . . . . Walls Destroyed . | . . . . . . Machines Disabled . | . . . . . . Actions | -11 -10 -9 -9 -8 -7 --------- Run | Yrd Mat Mat Min Mat Fac Total 2046 | 18 376 362 180 384 726 Wait 86 | . 11 . 47 24 4 Move 1820 | 18 340 328 131 322 681 Hop 9 | . 4 4 . 1 . Pick Up . | . . . . . . Fast Attach 13 | . 4 1 1 5 2 Attach . | . . . . . . Detach . | . . . . . . Swap 5 | . 2 . . 3 . Drop 6 | . 2 . 1 3 . Fire 39 | . 10 29 . . . Melee 32 | . . . . 23 9 Ram . | . . . . . . Kick . | . . . . . . Crush . | . . . . . . Escape Stasis 30 | . . . . . 30 Rewire . | . . . . . . Trap . | . . . . . . Miscellaneous 6 | . 3 . . 3 . Route ------- -11/Scrapyard -10/Materials -9/Materials (discovered 2 exits: Mat / *Min) -9/Mines -8/Materials (discovered 3 exits: *Fac x3) -7/Factory (discovered 2 exits: *Fac x2) History --------- Turn | Location | Event 4 | -11/Scrapyard | Discovered new exit (range 15) 11 | -11/Scrapyard | Entered Materials 44 | -10/Materials | Upgraded with Propulsion slot (x2) 155 | -10/Materials | Discovered new exit (range 8) 178 | -10/Materials | Entered another Materials area 180 | -9/Materials | Reached level 2 250 | -9/Materials | Core integrity fell below 50% 252 | -9/Materials | Reached level 3 301 | -9/Materials | Build established: Mutant 306 | -9/Materials | Destroyed 7 combat bots 306 | -9/Materials | Identified exit to Mines 322 | -9/Materials | Discovered new exit (range 7) 352 | -9/Materials | Entered Mines 354 | -9/Mines | Assisted by bots powering up and referring to "LRC-V3" 377 | -9/Mines | Assembled infested the area 393 | -9/Mines | A weapon hastily lodged in a ceiling crevice suddenly fell to the ground 401 | -9/Mines | Discovered new exit (range 10) 446 | -9/Mines | Entered Materials 447 | -8/Materials | Core integrity fell below 50% 448 | -8/Materials | Reached level 4 454 | -8/Materials | Upgraded with Utility slot (x1) 491 | -8/Materials | Upgraded with Utility slot (x1) 510 | -8/Materials | Identified exit to Factory 510 | -8/Materials | Central database locked down 511 | -8/Materials | Core integrity fell below 20% 522 | -8/Materials | Reached level 5 594 | -8/Materials | Upgraded with Utility slot (x1) 639 | -8/Materials | Entered Factory 640 | -7/Factory | Core integrity fell below 50% 640 | -7/Factory | Core integrity fell below 20% 641 | -7/Factory | Reached level 6 678 | -7/Factory | Discovered new exit (range 17) 813 | -7/Factory | Upgraded with Weapon slot (x1) 869 | -7/Factory | Discovered new exit (range 5) 871 | -7/Factory | Identified exit to Factory 892 | -7/Factory | Build established: Sprinter 898 | -7/Factory | Destroyed by C-17 Slicer with Blade Saw Last Messages --------------- 00832_ A bubble of electromagnetic force engulfs the area. 00832_ Door malfunctions. 00832_ Construction Platform disabled. 00854_ K-01 Serf cleans the Assembly Bed. 00869_ EXIT=FOUND 00871_ EXIT=IDENTIFIED: FACTORY 00887_ Connecting with Scanalyzer... >>Study(Flail) Identified Flail... Downloading performance data... Effective improvements: +10% accuracy 00888_ ALERT: Suspicious intruders detected, dispatching Cutter reinforcements to area. 00897_ C-17 Slicer knocked back. 00897_ Knocked back. 00897_ C-17 Slicer knocked back. 00898_ Imp. VTOL Module severed. 00898_ Acquired Imp. VTOL Module. Map ----- +----------------------------------------------------+ | """" #????????????????????????############ | | """" ! #????????????????????????+ | | """" #????????????????????????# "" "" | | """" #????????????????????????#] "" "" | | """" ]] #????????????????????????# """ """ | | ][ #????????????????????????+ """ """ | | +#####+##########?????????????????????# """ """ | | #??# #??# ?????????????????????+ | | #??# #??# """" ????????????????????# | | #??# #??# """" #??????????????????# | | #??# #### """" #????????######+##+# = % | | #??# / """" #????????# # | | #??# # """ #????????# # """ """ | | #### # """" #????????# " """S""" = | | + # """" = #????????# """ """ ############ | | # # #????????# """ """ #??????????? | | ### ##########?######## """ """ #??????????? | | #??????????#! + #??????????? | | #??????????# ; #??????????? | | #??????????#| """ #########"#??????????? | | ##+############ """ #?????###"####???????? | | # ]## """ ####### #???????? | | # ##! # # """" #???????? | | " """ # ##### # # """" #?####### | | " """ # ] + cc